[Event "Titled Tuesday Blitz April 18 Early 2023"]
[White "Quirke, Jeffrey"]
[Black "Kula, Robert"]
[WhiteFideId "2013029"]
[BlackFideId "1101218"]
[WhiteElo "2242"]
[BlackElo "2180"]
[Result "0-1"]
[Round "11"]
[TimeControl "180+2"]
[Date "2023.04.18"]
[WhiteClock "0:00:02"]
[BlackClock "0:00:04"]

1. e4 {[%clk 0:03:00]}  c5 {[%clk 0:02:00]} 2. Nc3 {[%clk 0:02:59]}  Nc6 {[%clk 0:02:00]} 3. f4 {[%clk 0:02:58]}  d6 {[%clk 0:01:59]} 4. Nf3 {[%clk 0:02:56]}  g6 {[%clk 0:02:00]} 5. Bb5 {[%clk 0:02:56]}  Bg7 {[%clk 0:02:01]} 6. a4 {[%clk 0:02:51]}  Nf6 {[%clk 0:02:00]} 7. Bxc6+ {[%clk 0:02:44]}  bxc6 {[%clk 0:01:59]} 8. e5 {[%clk 0:02:44]}  Nd5 {[%clk 0:01:57]} 9. O-O {[%clk 0:02:29]}  Nxf4 {[%clk 0:01:56]} 10. exd6 {[%clk 0:02:25]}  exd6 {[%clk 0:01:55]} 11. d4 {[%clk 0:02:23]}  Ne6 {[%clk 0:01:54]} 12. dxc5 {[%clk 0:02:16]}  dxc5 {[%clk 0:01:54]} 13. Ne4 {[%clk 0:01:45]}  O-O {[%clk 0:01:51]} 14. c3 {[%clk 0:01:41]}  Ba6 {[%clk 0:01:48]} 15. Re1 {[%clk 0:01:38]}  Bd3 {[%clk 0:01:45]} 16. Nf2 {[%clk 0:01:36]}  Bf5 {[%clk 0:01:42]} 17. Be3 {[%clk 0:01:34]}  Qxd1 {[%clk 0:01:40]} 18. Raxd1 {[%clk 0:01:31]}  Rad8 {[%clk 0:01:41]} 19. Rxd8 {[%clk 0:01:22]}  Rxd8 {[%clk 0:01:40]} 20. g4 {[%clk 0:01:16]}  Bc2 {[%clk 0:01:34]} 21. a5 {[%clk 0:01:16]}  Rb8 {[%clk 0:01:25]} 22. Bc1 {[%clk 0:01:06]}  c4 {[%clk 0:01:16]} 23. Ne5 {[%clk 0:01:04]}  Ba4 {[%clk 0:01:09]} 24. g5 {[%clk 0:00:57]}  Rb5 {[%clk 0:01:07]} 25. Nfg4 {[%clk 0:00:55]}  Rxa5 {[%clk 0:01:06]} 26. Nxc4 {[%clk 0:00:45]}  Rd5 {[%clk 0:00:52]} 27. h4 {[%clk 0:00:36]}  Bb5 {[%clk 0:00:46]} 28. Nce3 {[%clk 0:00:29]}  Rd8 {[%clk 0:00:38]} 29. Nc2 {[%clk 0:00:19]}  Nf4 {[%clk 0:00:32]} 30. Nb4 {[%clk 0:00:17]}  Ne2+ {[%clk 0:00:24]} 31. Kh2 {[%clk 0:00:15]}  Nxc1 {[%clk 0:00:23]} 32. Rxc1 {[%clk 0:00:15]}  Rd2+ {[%clk 0:00:24]} 33. Kg3 {[%clk 0:00:15]}  Rxb2 {[%clk 0:00:24]} 34. Rd1 {[%clk 0:00:14]}  Kf8 {[%clk 0:00:15]} 35. Rd7 {[%clk 0:00:13]}  Rb3 {[%clk 0:00:14]} 36. Rxa7 {[%clk 0:00:11]}  Rxc3+ {[%clk 0:00:13]} 37. Kg2 {[%clk 0:00:11]}  Bc4 {[%clk 0:00:12]} 38. Na6 {[%clk 0:00:06]}  Bd5+ {[%clk 0:00:09]} 39. Kf1 {[%clk 0:00:06]}  Ra3 {[%clk 0:00:08]} 40. Ra8+ {[%clk 0:00:05]}  Ke7 {[%clk 0:00:08]} 41. Nc7 {[%clk 0:00:05]}  Bc4+ {[%clk 0:00:04]} 42. Ke1 {[%clk 0:00:04]}  Bc3+ {[%clk 0:00:04]} 43. Kd1 {[%clk 0:00:04]}  Rb3 {[%clk 0:00:04]} 44. Re8+ {[%clk 0:00:02]}  Kd7 {[%clk 0:00:04]} 0-1


[Site "https://www.chess.com"]

[Event "Titled Tuesday Blitz April 18 Early 2023"]
[White "Mikhaylova, Irina"]
[Black "dDobravcan"]
[WhiteFideId "4109040"]
[WhiteElo "1975"]
[BlackElo "2179"]
[Result "1-0"]
[Round "11"]
[TimeControl "180+2"]
[Date "2023.04.18"]
[WhiteClock "0:00:18"]
[BlackClock "0:00:01"]

1. Nf3 {[%clk 0:03:00]}  d6 {[%clk 0:02:58]} 2. c4 {[%clk 0:03:00]}  Bg4 {[%clk 0:02:57]} 3. d4 {[%clk 0:03:00]}  Nd7 {[%clk 0:02:56]} 4. d5 {[%clk 0:03:00]}  e5 {[%clk 0:02:51]} 5. dxe6 {[%clk 0:02:58]}  fxe6 {[%clk 0:02:46]} 6. h3 {[%clk 0:02:58]}  Bh5 {[%clk 0:02:44]} 7. Nd4 {[%clk 0:02:58]}  Bf7 {[%clk 0:02:40]} 8. Nc3 {[%clk 0:02:57]}  Ngf6 {[%clk 0:02:39]} 9. e4 {[%clk 0:02:58]}  a6 {[%clk 0:02:27]} 10. Be2 {[%clk 0:02:58]}  c5 {[%clk 0:02:26]} 11. Nc2 {[%clk 0:02:57]}  Be7 {[%clk 0:02:22]} 12. Bf4 {[%clk 0:02:51]}  Qc7 {[%clk 0:02:15]} 13. Qd2 {[%clk 0:02:46]}  O-O-O {[%clk 0:02:10]} 14. O-O-O {[%clk 0:02:41]}  Nb8 {[%clk 0:02:01]} 15. Qe3 {[%clk 0:02:33]}  Nc6 {[%clk 0:01:57]} 16. Rd2 {[%clk 0:02:28]}  e5 {[%clk 0:01:54]} 17. Bg5 {[%clk 0:02:16]}  Nd4 {[%clk 0:01:54]} 18. Bxf6 {[%clk 0:01:46]}  Bxf6 {[%clk 0:01:51]} 19. Nd5 {[%clk 0:01:46]}  Bxd5 {[%clk 0:01:50]} 20. cxd5 {[%clk 0:01:46]}  Qa5 {[%clk 0:01:36]} 21. Kb1 {[%clk 0:01:28]}  h6 {[%clk 0:01:28]} 22. h4 {[%clk 0:00:46]}  g5 {[%clk 0:01:25]} 23. Qc3 {[%clk 0:00:37]}  Qb6 {[%clk 0:01:18]} 24. h5 {[%clk 0:00:31]}  Kb8 {[%clk 0:01:15]} 25. Bg4 {[%clk 0:00:25]}  Ka7 {[%clk 0:01:03]} 26. Rc1 {[%clk 0:00:25]}  Rhf8 {[%clk 0:00:57]} 27. Ne3 {[%clk 0:00:25]}  Bg7 {[%clk 0:00:48]} 28. Bf5 {[%clk 0:00:24]}  g4 {[%clk 0:00:43]} 29. Nxg4 {[%clk 0:00:20]}  Nxf5 {[%clk 0:00:39]} 30. exf5 {[%clk 0:00:20]}  Rxf5 {[%clk 0:00:39]} 31. Ne3 {[%clk 0:00:21]}  Rxh5 {[%clk 0:00:38]} 32. g4 {[%clk 0:00:21]}  Rh2 {[%clk 0:00:36]} 33. Nf5 {[%clk 0:00:20]}  Bf6 {[%clk 0:00:34]} 34. Qb3 {[%clk 0:00:20]}  Bg5 {[%clk 0:00:31]} 35. Rdc2 {[%clk 0:00:19]}  Bxc1 {[%clk 0:00:29]} 36. Kxc1 {[%clk 0:00:20]}  Rh1+ {[%clk 0:00:28]} 37. Kd2 {[%clk 0:00:20]}  Qa5+ {[%clk 0:00:27]} 38. Qc3 {[%clk 0:00:20]}  Qxc3+ {[%clk 0:00:26]} 39. Kxc3 {[%clk 0:00:19]}  Rf8 {[%clk 0:00:26]} 40. Re2 {[%clk 0:00:19]}  Rf6 {[%clk 0:00:24]} 41. Ng3 {[%clk 0:00:18]}  Rf4 {[%clk 0:00:22]} 42. Ne4 {[%clk 0:00:17]}  Rxg4 {[%clk 0:00:20]} 43. Nxd6 {[%clk 0:00:17]}  Rg2 {[%clk 0:00:19]} 44. Nc4 {[%clk 0:00:16]}  e4 {[%clk 0:00:17]} 45. Ne3 {[%clk 0:00:16]}  Rg7 {[%clk 0:00:15]} 46. Kc4 {[%clk 0:00:17]}  b6 {[%clk 0:00:13]} 47. d6 {[%clk 0:00:17]}  Rc1+ {[%clk 0:00:11]} 48. Kd5 {[%clk 0:00:16]}  Rg5+ {[%clk 0:00:09]} 49. Kc6 {[%clk 0:00:16]}  b5 {[%clk 0:00:08]} 50. Rd2 {[%clk 0:00:16]}  Rg8 {[%clk 0:00:06]} 51. d7 {[%clk 0:00:17]}  Rd8 {[%clk 0:00:04]} 52. Kc7 {[%clk 0:00:17]}  Rxd7+ {[%clk 0:00:05]} 53. Rxd7 {[%clk 0:00:17]}  a5 {[%clk 0:00:03]} 54. Kc6+ {[%clk 0:00:17]}  Ka6 {[%clk 0:00:01]} 55. Nd5 {[%clk 0:00:18]} 1-0


[Site "https://www.chess.com"]

[Event "Titled Tuesday Blitz April 18 Early 2023"]
[White "Theytookourjobs"]
[Black "Kiseljova, Marya"]
[BlackFideId "4155009"]
[WhiteElo "2316"]
[BlackElo "1851"]
[Result "1-0"]
[Round "11"]
[TimeControl "180+2"]
[Date "2023.04.18"]
[WhiteClock "0:00:06"]
[BlackClock "0:00:07"]

1. d4 {[%clk 0:03:00]}  d5 {[%clk 0:02:59]} 2. Bf4 {[%clk 0:03:01]}  Nf6 {[%clk 0:02:56]} 3. e3 {[%clk 0:03:01]}  e6 {[%clk 0:02:55]} 4. Nf3 {[%clk 0:02:59]}  c5 {[%clk 0:02:55]} 5. Nc3 {[%clk 0:02:58]}  Nc6 {[%clk 0:02:54]} 6. Nb5 {[%clk 0:02:59]}  Qa5+ {[%clk 0:02:39]} 7. c3 {[%clk 0:02:58]}  Kd7 {[%clk 0:02:20]} 8. Bc7 {[%clk 0:02:44]}  b6 {[%clk 0:02:20]} 9. Bf4 {[%clk 0:01:51]}  Ne8 {[%clk 0:02:17]} 10. Be2 {[%clk 0:01:17]}  c4 {[%clk 0:02:16]} 11. a4 {[%clk 0:01:12]}  Ba6 {[%clk 0:01:40]} 12. Na3 {[%clk 0:01:01]}  Bd6 {[%clk 0:01:39]} 13. Bg3 {[%clk 0:00:55]}  h6 {[%clk 0:01:19]} 14. O-O {[%clk 0:00:54]}  Bxg3 {[%clk 0:01:18]} 15. hxg3 {[%clk 0:00:54]}  Nf6 {[%clk 0:01:17]} 16. Nc2 {[%clk 0:00:48]}  b5 {[%clk 0:01:10]} 17. axb5 {[%clk 0:00:37]}  Qxb5 {[%clk 0:01:11]} 18. b3 {[%clk 0:00:38]}  Ne4 {[%clk 0:01:00]} 19. bxc4 {[%clk 0:00:30]}  dxc4 {[%clk 0:01:01]} 20. Na3 {[%clk 0:00:27]}  Qd5 {[%clk 0:00:47]} 21. Qa4 {[%clk 0:00:23]}  Nxc3 {[%clk 0:00:38]} 22. Qc2 {[%clk 0:00:22]}  Nxe2+ {[%clk 0:00:37]} 23. Qxe2 {[%clk 0:00:23]}  Rhb8 {[%clk 0:00:32]} 24. Rfc1 {[%clk 0:00:23]}  Nb4 {[%clk 0:00:30]} 25. Nxc4 {[%clk 0:00:21]}  Bxc4 {[%clk 0:00:28]} 26. Rxc4 {[%clk 0:00:21]}  a5 {[%clk 0:00:28]} 27. Rac1 {[%clk 0:00:19]}  Rb7 {[%clk 0:00:27]} 28. Ne5+ {[%clk 0:00:18]}  Ke7 {[%clk 0:00:26]} 29. Qg4 {[%clk 0:00:18]}  g5 {[%clk 0:00:25]} 30. Qh5 {[%clk 0:00:18]}  f6 {[%clk 0:00:13]} 31. Qf7+ {[%clk 0:00:17]}  Kd6 {[%clk 0:00:14]} 32. Rc6+ {[%clk 0:00:05]}  Nxc6 {[%clk 0:00:12]} 33. Qxb7 {[%clk 0:00:05]}  Nxe5 {[%clk 0:00:12]} 34. dxe5+ {[%clk 0:00:05]}  Kxe5 {[%clk 0:00:12]} 35. Qb2+ {[%clk 0:00:04]}  Kf5 {[%clk 0:00:12]} 36. Qb1+ {[%clk 0:00:03]}  Ke5 {[%clk 0:00:10]} 37. f4+ {[%clk 0:00:01]}  gxf4 {[%clk 0:00:09]} 38. gxf4+ {[%clk 0:00:02]}  Kd6 {[%clk 0:00:07]} 39. Rd1 {[%clk 0:00:02]}  a4 {[%clk 0:00:07]} 40. Rxd5+ {[%clk 0:00:03]}  exd5 {[%clk 0:00:07]} 41. Qa2 {[%clk 0:00:03]}  Ra5 {[%clk 0:00:07]} 42. Qa3+ {[%clk 0:00:03]}  Kc6 {[%clk 0:00:07]} 43. Kf2 {[%clk 0:00:04]}  Kb5 {[%clk 0:00:07]} 44. Kf3 {[%clk 0:00:04]}  Ra6 {[%clk 0:00:07]} 45. Qd3+ {[%clk 0:00:04]}  Ka5 {[%clk 0:00:06]} 46. Qxd5+ {[%clk 0:00:05]}  Kb4 {[%clk 0:00:06]} 47. Qd2+ {[%clk 0:00:04]}  Kb5 {[%clk 0:00:04]} 48. Qd3+ {[%clk 0:00:04]}  Kb4 {[%clk 0:00:04]} 49. Qxa6 {[%clk 0:00:04]}  Kb3 {[%clk 0:00:04]} 50. Ke4 {[%clk 0:00:04]}  a3 {[%clk 0:00:05]} 51. Kf5 {[%clk 0:00:04]}  a2 {[%clk 0:00:06]} 52. Kxf6 {[%clk 0:00:05]}  Kb2 {[%clk 0:00:07]} 53. Qxa2+ {[%clk 0:00:05]}  Kxa2 {[%clk 0:00:06]} 54. Kg6 {[%clk 0:00:05]}  h5 {[%clk 0:00:07]} 55. Kxh5 {[%clk 0:00:06]} 1-0


[Site "https://www.chess.com"]

[Event "Titled Tuesday Blitz April 18 Early 2023"]
[White "Tyagi, Kushan"]
[Black "Tarnowska, Aleksandra"]
[WhiteFideId "2040069"]
[BlackFideId "1180967"]
[WhiteElo "2287"]
[BlackElo "1776"]
[Result "1-0"]
[Round "11"]
[TimeControl "180+2"]
[Date "2023.04.18"]
[WhiteClock "0:00:10"]
[BlackClock "0:00:03"]

1. d4 {[%clk 0:03:00]}  d5 {[%clk 0:03:00]} 2. c4 {[%clk 0:02:57]}  e6 {[%clk 0:03:00]} 3. Nf3 {[%clk 0:02:57]}  Nf6 {[%clk 0:03:01]} 4. g3 {[%clk 0:02:57]}  Bb4+ {[%clk 0:03:00]} 5. Bd2 {[%clk 0:02:56]}  Be7 {[%clk 0:03:00]} 6. Bg2 {[%clk 0:02:56]}  O-O {[%clk 0:03:01]} 7. O-O {[%clk 0:02:57]}  dxc4 {[%clk 0:02:59]} 8. Qc2 {[%clk 0:02:57]}  c5 {[%clk 0:02:36]} 9. dxc5 {[%clk 0:02:35]}  Bxc5 {[%clk 0:02:35]} 10. Qxc4 {[%clk 0:02:35]}  Qb6 {[%clk 0:02:14]} 11. Nc3 {[%clk 0:02:27]}  Bd7 {[%clk 0:02:12]} 12. Ne5 {[%clk 0:02:19]}  Nc6 {[%clk 0:01:18]} 13. Nxd7 {[%clk 0:01:40]}  Nxd7 {[%clk 0:01:19]} 14. Na4 {[%clk 0:01:33]}  Qd8 {[%clk 0:01:03]} 15. Bxc6 {[%clk 0:01:16]}  bxc6 {[%clk 0:00:59]} 16. Nxc5 {[%clk 0:01:16]}  Nxc5 {[%clk 0:00:59]} 17. Bb4 {[%clk 0:01:14]}  Nd7 {[%clk 0:00:33]} 18. Bxf8 {[%clk 0:01:12]}  Nxf8 {[%clk 0:00:30]} 19. Qxc6 {[%clk 0:01:10]}  Rc8 {[%clk 0:00:30]} 20. Qe4 {[%clk 0:01:07]}  Qb6 {[%clk 0:00:29]} 21. b3 {[%clk 0:01:02]}  h6 {[%clk 0:00:27]} 22. Rac1 {[%clk 0:01:01]}  Rb8 {[%clk 0:00:24]} 23. Rfd1 {[%clk 0:00:56]}  Qa5 {[%clk 0:00:22]} 24. Rc2 {[%clk 0:00:52]}  Ng6 {[%clk 0:00:18]} 25. Rdc1 {[%clk 0:00:50]}  Rf8 {[%clk 0:00:15]} 26. Rc8 {[%clk 0:00:47]}  Qxa2 {[%clk 0:00:08]} 27. b4 {[%clk 0:00:31]}  Qa3 {[%clk 0:00:06]} 28. h4 {[%clk 0:00:27]}  Ne7 {[%clk 0:00:05]} 29. Rxf8+ {[%clk 0:00:25]}  Kxf8 {[%clk 0:00:06]} 30. Qa8+ {[%clk 0:00:24]}  Nc8 {[%clk 0:00:03]} 31. Rxc8+ {[%clk 0:00:17]}  Ke7 {[%clk 0:00:04]} 32. Re8+ {[%clk 0:00:15]}  Kf6 {[%clk 0:00:04]} 33. Qd8+ {[%clk 0:00:14]}  Kg6 {[%clk 0:00:04]} 34. Qd3+ {[%clk 0:00:11]}  Kf6 {[%clk 0:00:03]} 35. Qxa3 {[%clk 0:00:10]} 1-0


[Site "https://www.chess.com"]

[Event "Titled Tuesday Blitz April 18 Early 2023"]
[White "Thomas, Anysia"]
[Black "Steenbekkers, Franck"]
[WhiteFideId "670472"]
[BlackFideId "1004220"]
[WhiteElo "2091"]
[BlackElo "2114"]
[Result "1-0"]
[Round "11"]
[TimeControl "180+2"]
[Date "2023.04.18"]
[WhiteClock "0:00:28"]
[BlackClock "0:01:26"]

1. d4 {[%clk 0:03:00]}  Nf6 {[%clk 0:02:58]} 2. c4 {[%clk 0:03:01]}  g6 {[%clk 0:02:58]} 3. Nc3 {[%clk 0:03:01]}  d5 {[%clk 0:02:58]} 4. cxd5 {[%clk 0:03:01]}  Nxd5 {[%clk 0:02:57]} 5. e4 {[%clk 0:03:02]}  Nxc3 {[%clk 0:02:58]} 6. bxc3 {[%clk 0:03:03]}  Bg7 {[%clk 0:02:57]} 7. Be3 {[%clk 0:03:04]}  c5 {[%clk 0:02:57]} 8. Nf3 {[%clk 0:03:04]}  Qa5 {[%clk 0:02:56]} 9. Qd2 {[%clk 0:03:04]}  O-O {[%clk 0:02:56]} 10. Rb1 {[%clk 0:03:04]}  b6 {[%clk 0:02:53]} 11. Rb5 {[%clk 0:02:46]}  Qa4 {[%clk 0:02:52]} 12. dxc5 {[%clk 0:02:11]}  Ba6 {[%clk 0:02:49]} 13. Rb4 {[%clk 0:02:10]}  Qa5 {[%clk 0:02:48]} 14. cxb6 {[%clk 0:01:50]}  Nc6 {[%clk 0:02:42]} 15. Rb3 {[%clk 0:01:36]}  Bxf1 {[%clk 0:02:35]} 16. Kxf1 {[%clk 0:01:33]}  axb6 {[%clk 0:02:34]} 17. g3 {[%clk 0:01:30]}  Qxa2 {[%clk 0:02:33]} 18. Qxa2 {[%clk 0:01:30]}  Rxa2 {[%clk 0:02:31]} 19. Kg2 {[%clk 0:01:30]}  Na5 {[%clk 0:02:28]} 20. Rxb6 {[%clk 0:01:27]}  Bxc3 {[%clk 0:02:28]} 21. Bh6 {[%clk 0:01:15]}  Rd8 {[%clk 0:02:23]} 22. Ra6 {[%clk 0:01:10]}  f6 {[%clk 0:02:16]} 23. Ra7 {[%clk 0:01:09]}  Kf7 {[%clk 0:02:13]} 24. e5 {[%clk 0:01:02]}  Bxe5 {[%clk 0:02:02]} 25. Nxe5+ {[%clk 0:00:59]}  fxe5 {[%clk 0:02:01]} 26. Bg5 {[%clk 0:00:55]}  Re8 {[%clk 0:01:44]} 27. Re1 {[%clk 0:00:43]}  Ra3 {[%clk 0:01:41]} 28. Rxe5 {[%clk 0:00:39]}  Nc4 {[%clk 0:01:42]} 29. Rexe7+ {[%clk 0:00:36]}  Rxe7 {[%clk 0:01:41]} 30. Rxe7+ {[%clk 0:00:36]}  Kg8 {[%clk 0:01:41]} 31. Bh6 {[%clk 0:00:31]}  Nd6 {[%clk 0:01:37]} 32. Rg7+ {[%clk 0:00:28]}  Kh8 {[%clk 0:01:34]} 33. Rd7 {[%clk 0:00:28]}  Ne8 {[%clk 0:01:27]} 34. Rd8 {[%clk 0:00:27]}  Kg8 {[%clk 0:01:25]} 35. Rxe8+ {[%clk 0:00:28]}  Kf7 {[%clk 0:01:26]} 36. Rf8+ {[%clk 0:00:28]} 1-0


[Site "https://www.chess.com"]

[Event "Titled Tuesday Blitz April 18 Early 2023"]
[White "babbilator"]
[Black "Kriti Mayur Patel"]
[BlackFideId "35061780"]
[WhiteElo "2263"]
[BlackElo "1306"]
[Result "1/2-1/2"]
[Round "11"]
[TimeControl "180+2"]
[Date "2023.04.18"]
[WhiteClock "0:00:08"]
[BlackClock "0:00:50"]

1. e4 {[%clk 0:03:00]}  e5 {[%clk 0:02:59]} 2. Nc3 {[%clk 0:02:58]}  Nf6 {[%clk 0:02:58]} 3. Nf3 {[%clk 0:02:57]}  Nc6 {[%clk 0:02:57]} 4. Bb5 {[%clk 0:02:57]}  Bb4 {[%clk 0:02:56]} 5. O-O {[%clk 0:02:49]}  d6 {[%clk 0:02:54]} 6. d3 {[%clk 0:02:45]}  O-O {[%clk 0:02:51]} 7. Bg5 {[%clk 0:02:40]}  Bg4 {[%clk 0:02:47]} 8. Nd5 {[%clk 0:02:30]}  Nd4 {[%clk 0:02:43]} 9. Nxf6+ {[%clk 0:01:33]}  gxf6 {[%clk 0:02:41]} 10. Bh6 {[%clk 0:01:33]}  Nxf3+ {[%clk 0:02:11]} 11. gxf3 {[%clk 0:01:32]}  Bh3 {[%clk 0:02:10]} 12. Kh1 {[%clk 0:01:20]}  Bxf1 {[%clk 0:01:54]} 13. Qxf1 {[%clk 0:01:18]}  Kh8 {[%clk 0:01:54]} 14. Bxf8 {[%clk 0:00:51]}  Qxf8 {[%clk 0:01:55]} 15. Qh3 {[%clk 0:00:40]}  Bc5 {[%clk 0:01:49]} 16. Qh4 {[%clk 0:00:38]}  Qe7 {[%clk 0:01:41]} 17. Rg1 {[%clk 0:00:32]}  Rg8 {[%clk 0:01:41]} 18. Rxg8+ {[%clk 0:00:29]}  Kxg8 {[%clk 0:01:40]} 19. Bc4 {[%clk 0:00:29]}  c6 {[%clk 0:01:29]} 20. Kg2 {[%clk 0:00:29]}  b5 {[%clk 0:01:25]} 21. Bb3 {[%clk 0:00:29]}  a5 {[%clk 0:01:24]} 22. a4 {[%clk 0:00:28]}  b4 {[%clk 0:01:15]} 23. Qg4+ {[%clk 0:00:24]}  Kf8 {[%clk 0:01:08]} 24. Qc8+ {[%clk 0:00:21]}  Qe8 {[%clk 0:01:07]} 25. Qa6 {[%clk 0:00:19]}  Bd4 {[%clk 0:01:03]} 26. Qxa5 {[%clk 0:00:14]}  c5 {[%clk 0:00:59]} 27. c3 {[%clk 0:00:14]}  bxc3 {[%clk 0:00:55]} 28. bxc3 {[%clk 0:00:15]}  Qb8 {[%clk 0:00:55]} 29. Bc4 {[%clk 0:00:08]}  Bxf2 {[%clk 0:00:53]} 30. Kxf2 {[%clk 0:00:08]}  Qb2+ {[%clk 0:00:53]} 31. Kg3 {[%clk 0:00:09]}  Qd2 {[%clk 0:00:49]} 32. Qd8+ {[%clk 0:00:08]}  Kg7 {[%clk 0:00:49]} 33. Qxd6 {[%clk 0:00:08]}  Qg5+ {[%clk 0:00:49]} 34. Kf2 {[%clk 0:00:08]}  Qd2+ {[%clk 0:00:50]} 35. Kg3 {[%clk 0:00:08]}  Qg5+ {[%clk 0:00:50]} 36. Kf2 {[%clk 0:00:08]}  Qd2+ {[%clk 0:00:50]} 37. Kf1 {[%clk 0:00:08]}  Qd1+ {[%clk 0:00:49]} 38. Kf2 {[%clk 0:00:08]}  Qd2+ {[%clk 0:00:50]} 1/2-1/2


[Site "https://www.chess.com"]

[Event "Titled Tuesday Blitz April 18 Early 2023"]
[White "Torres Dominguez, David"]
[Black "Clawitter, Craig"]
[WhiteFideId "2220857"]
[BlackFideId "2023105"]
[WhiteElo "1999"]
[BlackElo "2233"]
[Result "1-0"]
[Round "11"]
[TimeControl "180+2"]
[Date "2023.04.18"]
[WhiteClock "0:01:17"]
[BlackClock "0:00:03"]

1. e4 {[%clk 0:02:53]}  e6 {[%clk 0:02:58]} 2. d4 {[%clk 0:02:52]}  d5 {[%clk 0:02:59]} 3. exd5 {[%clk 0:02:53]}  exd5 {[%clk 0:02:59]} 4. Bd3 {[%clk 0:02:54]}  Bd6 {[%clk 0:02:59]} 5. Qf3 {[%clk 0:02:54]}  Nf6 {[%clk 0:02:54]} 6. h3 {[%clk 0:02:53]}  Nc6 {[%clk 0:02:51]} 7. Ne2 {[%clk 0:02:52]}  Be6 {[%clk 0:02:42]} 8. Bf4 {[%clk 0:02:52]}  O-O {[%clk 0:02:41]} 9. c3 {[%clk 0:02:47]}  Re8 {[%clk 0:02:39]} 10. Nd2 {[%clk 0:02:46]}  Ne7 {[%clk 0:02:33]} 11. Bxd6 {[%clk 0:02:44]}  Qxd6 {[%clk 0:02:31]} 12. O-O {[%clk 0:02:45]}  c6 {[%clk 0:02:28]} 13. Qg3 {[%clk 0:02:45]}  Qxg3 {[%clk 0:02:16]} 14. Nxg3 {[%clk 0:02:44]}  Nc8 {[%clk 0:02:08]} 15. Rfe1 {[%clk 0:02:42]}  Nd6 {[%clk 0:02:08]} 16. f3 {[%clk 0:02:39]}  g6 {[%clk 0:02:04]} 17. Kf2 {[%clk 0:02:37]}  h5 {[%clk 0:02:03]} 18. h4 {[%clk 0:02:37]}  Kg7 {[%clk 0:02:03]} 19. Re2 {[%clk 0:02:35]}  Bd7 {[%clk 0:01:50]} 20. Rae1 {[%clk 0:02:35]}  Rxe2+ {[%clk 0:01:50]} 21. Rxe2 {[%clk 0:02:31]}  Re8 {[%clk 0:01:50]} 22. Rxe8 {[%clk 0:02:29]}  Nfxe8 {[%clk 0:01:50]} 23. Ndf1 {[%clk 0:02:29]}  Kf6 {[%clk 0:01:43]} 24. Ne3 {[%clk 0:02:29]}  Ng7 {[%clk 0:01:40]} 25. Ne2 {[%clk 0:02:16]}  Ngf5 {[%clk 0:01:40]} 26. Bxf5 {[%clk 0:02:14]}  Nxf5 {[%clk 0:01:34]} 27. Nxf5 {[%clk 0:02:13]}  Bxf5 {[%clk 0:01:35]} 28. g3 {[%clk 0:02:11]}  Bb1 {[%clk 0:01:31]} 29. a3 {[%clk 0:02:10]}  b6 {[%clk 0:01:26]} 30. Ke3 {[%clk 0:02:09]}  Kf5 {[%clk 0:01:18]} 31. Nf4 {[%clk 0:02:06]}  Ba2 {[%clk 0:01:14]} 32. Nh3 {[%clk 0:02:05]}  c5 {[%clk 0:01:05]} 33. Nf2 {[%clk 0:02:04]}  Bc4 {[%clk 0:01:04]} 34. g4+ {[%clk 0:02:04]}  hxg4 {[%clk 0:01:01]} 35. fxg4+ {[%clk 0:02:04]}  Ke6 {[%clk 0:01:00]} 36. Kf4 {[%clk 0:02:04]}  f6 {[%clk 0:00:59]} 37. g5 {[%clk 0:02:02]}  cxd4 {[%clk 0:00:54]} 38. cxd4 {[%clk 0:02:01]}  Be2 {[%clk 0:00:51]} 39. Nh1 {[%clk 0:01:54]}  a5 {[%clk 0:00:39]} 40. Ng3 {[%clk 0:01:54]}  Bd1 {[%clk 0:00:39]} 41. Nf1 {[%clk 0:01:50]}  b5 {[%clk 0:00:32]} 42. Ne3 {[%clk 0:01:50]}  Bb3 {[%clk 0:00:33]} 43. gxf6 {[%clk 0:01:46]}  Kxf6 {[%clk 0:00:33]} 44. Ng4+ {[%clk 0:01:46]}  Ke6 {[%clk 0:00:14]} 45. Ne5 {[%clk 0:01:44]}  Bc2 {[%clk 0:00:13]} 46. Kg5 {[%clk 0:01:44]}  b4 {[%clk 0:00:13]} 47. Nxg6 {[%clk 0:01:39]}  bxa3 {[%clk 0:00:08]} 48. bxa3 {[%clk 0:01:38]}  Kf7 {[%clk 0:00:05]} 49. Ne5+ {[%clk 0:01:29]}  Kg7 {[%clk 0:00:06]} 50. h5 {[%clk 0:01:22]}  Kh7 {[%clk 0:00:06]} 51. h6 {[%clk 0:01:21]}  Be4 {[%clk 0:00:05]} 52. Nd7 {[%clk 0:01:20]}  Bd3 {[%clk 0:00:04]} 53. Nf6+ {[%clk 0:01:19]}  Kh8 {[%clk 0:00:03]} 54. Nxd5 {[%clk 0:01:19]}  a4 {[%clk 0:00:03]} 55. Nb6 {[%clk 0:01:17]} 1-0


[Site "https://www.chess.com"]